bitfinex-derivatives/quotes_SOLF0:USTF0_20220106
["timestamp","ask_amount","ask_price","bid_price","bid_amount"]
[1641512237628,61.953,150.93,150.85,60.7224]
[1641512238226,61.953,150.93,150.88,4.6759655]
[1641512238426,27.66479,150.94,150.88,4.6759655]
[1641512239326,11.81977423,150.93,150.88,4.6759655]
[1641512242531,18.11577423,150.93,150.88,4.6759655]
[1641512243435,55.59154664,150.93,150.86,4.6759655]
[1641512246034,3.26354648,150.92,150.87,4.6759655]
[1641512246933,15.08332071,150.93,150.88,4.6759655]
[1641512249538,15.08332071,150.94,150.89,4.6759655]
[1641512249937,15.08332071,150.94,150.89,8.6759655]
[1641512250438,15.08332071,150.94,150.89,4.0]
[1641512251337,3.26354648,150.94,150.89,4.0]
[1641512251536,3.26354648,150.94,150.9,6.08870329]
[1641512252137,15.08040914,150.94,150.9,6.08870329]
[1641512252939,15.08040914,150.94,150.89,6.08870329]
[1641512253338,15.08040914,150.94,150.89,10.08870329]
[1641512253538,3.26354648,150.94,150.89,10.08870329]
[1641512253740,3.26354648,150.94,150.91,4.6759655]
[1641512253938,3.26354648,150.94,150.91,11.0359655]
[1641512254139,3.26354648,150.94,150.91,17.65344226]
[1641512254539,3.26354648,150.94,150.91,12.97747676]
[1641512254841,3.26354648,150.97,150.92,1.41273779]
[1641512255639,15.07724719,150.97,150.92,6.08731187]
[1641512258943,3.26354648,150.97,150.92,4.67457408]
[1641512259143,3.26354648,150.97,150.89,27.66479]
[1641512259844,3.26354648,150.97,150.91,4.0]
[1641512260045,3.26354648,150.97,150.9,20.0]
[1641512260445,3.26354648,150.97,150.89,34.23179]
[1641512260648,3.26354648,150.98,150.89,38.90636408]
[1641512261548,3.26354648,150.98,150.89,32.33936408]
[1641512262449,3.26354648,150.98,150.89,27.66479]
[1641512262650,27.66479,150.97,150.89,27.66479]
[1641512262849,32.28879,150.97,150.88,4.67457408]
[1641512263251,3.26354648,150.96,150.88,4.67457408]
[1641512263950,3.26354648,150.96,150.86,6.07929832]
[1641512264150,7.26354648,150.96,150.86,6.07929832]
[1641512264352,3.26354648,150.96,150.86,10.07929832]
[1641512264550,27.66479,150.93,150.86,6.07929832]
[1641512264950,27.66479,150.93,150.86,4.67457408]
[1641512265150,27.66479,150.93,150.87,4.0]
[1641512265351,27.66479,150.93,150.86,4.67457408]
[1641512266753,32.31318827,150.93,150.86,6.07930654]
[1641512267355,32.31318827,150.93,150.86,10.07930654]
[1641512267654,4.64839827,150.9,150.89,4.67457408]
[1641512268656,4.64839827,150.9,150.87,14.0264257]
[1641512269562,4.64839827,150.9,150.86,15.43115816]
[1641512270160,4.64839827,150.9,150.86,19.43115816]
[1641512270359,4.64839827,150.91,150.86,19.43115816]
[1641512270560,4.64839827,150.91,150.87,41.6912157]
[1641512271562,4.64839827,150.92,150.89,14.0264257]
[1641512272263,4.64839827,150.92,150.88,22.31587391]
[1641512272463,4.64839827,150.92,150.88,28.93444562]
[1641512273063,4.64839827,150.93,150.89,15.43115816]
[1641512273663,4.64839827,150.93,150.89,19.43115816]
[1641512273865,4.64839827,150.93,150.89,21.14315816]
[1641512274165,4.64839827,150.93,150.89,25.14315816]
[1641512274767,4.64839827,150.93,150.9,27.66479]
[1641512274968,4.64839827,150.95,150.91,14.0264257]
[1641512275871,4.64839827,150.95,150.91,15.43115816]
[1641512276069,4.64839827,150.95,150.91,22.31587391]
[1641512276768,4.64839827,150.95,150.94,4.67398345]
[1641512277569,4.64839827,150.95,150.92,1.40473246]
[1641512278472,17.28900133,150.98,150.93,4.67427015]
[1641512278473,4.64839827,150.94,150.93,4.67427015]
[1641512279270,14.0264257,150.97,150.93,4.67427015]
[1641512279470,14.0264257,150.96,150.93,4.67427015]
[1641512282371,14.0264257,150.97,150.93,4.67427015]
[1641512284074,4.67425262,150.94,150.93,4.67427015]
[1641512285575,14.0264257,150.97,150.93,4.67427015]
[1641512287179,4.66924222,150.94,150.92,4.67427015]
[1641512289081,14.0264257,150.97,150.93,4.67427015]
[1641512289281,14.0264257,150.97,150.93,10.17927015]
[1641512289681,14.0264257,150.97,150.93,16.7958712]
[1641512290081,14.0264257,150.97,150.96,134.15013683]
[1641512290283,3.26257563,150.98,150.96,134.15013683]
[1641512291485,14.0264257,151.0,150.96,138.82440698]
[1641512291881,14.0264257,151.0,150.97,24.0]
[1641512292082,14.0264257,151.0,150.97,30.425]
[1641512292682,14.0264257,151.01,150.98,6.0863722]
[1641512292883,5.0264257,151.01,150.98,6.0863722]
[1641512293085,5.0264257,151.01,150.98,33.7511622]
[1641512293885,3.26257563,151.02,150.98,27.66479]
[1641512294087,3.26257563,151.03,151.0,4.67203091]
[1641512295088,3.26257563,151.03,150.99,8.02790757]
[1641512295287,3.25739171,151.05,151.02,4.67162404]
[1641512296287,60.4556,151.08,151.01,1.41367576]
[1641512296488,15.06009813,151.07,151.01,1.41367576]
[1641512297190,15.06009813,151.07,151.01,29.07846576]
[1641512297488,15.06009813,151.07,151.02,4.67164824]
[1641512298292,15.06009813,151.07,151.02,1.41366636]
[1641512299203,15.06009813,151.07,151.02,4.67166604]
[1641512300092,15.06009813,151.07,151.02,8.02635262]
[1641512300894,15.06009813,151.07,151.02,1.41368937]
[1641512301094,15.06009813,151.07,151.01,27.66479]
[1641512301296,30.92270868,151.08,151.04,4.67098779]
[1641512302294,30.92270868,151.08,151.01,27.66479]
[1641512302494,15.06009813,151.07,151.02,6.08588552]
[1641512303394,15.06009813,151.07,151.01,27.66479]
[1641512303595,15.06009813,151.07,151.03,4.67144762]
[1641512304296,27.66479,151.08,151.01,34.41379]
[1641512304696,4.61892045,151.1,151.01,34.41379]
[1641512304895,4.61892045,151.1,151.02,60.9303]
[1641512305496,4.61892045,151.1,151.02,53.45653121]
[1641512306097,4.61892045,151.11,151.02,53.45653121]
[1641512307997,4.61892045,151.11,151.02,77.45653121]
[1641512308598,4.61892045,151.11,151.02,73.45653121]
[1641512309299,62.77052045,151.12,151.02,73.45653121]
[1641512311203,62.77052045,151.12,151.02,79.99953121]
[1641512312207,62.77052045,151.12,151.02,59.99953121]
[1641512312405,62.77052045,151.12,151.02,53.45653121]
[1641512312605,4.61892045,151.11,151.02,53.45653121]
[1641512313206,4.61892045,151.11,151.04,27.66479]
[1641512314511,58.1516,151.12,151.04,27.66479]
[1641512315314,62.77052045,151.12,151.04,27.66479]
[1641512316915,3.2557163,151.11,151.05,6.03382128]
[1641512317113,19.69537117,151.11,151.05,6.03382128]
[1641512317513,4.0,151.08,151.05,6.03382128]
[1641512317915,4.0,151.08,151.04,32.28371045]
[1641512318518,3.2557163,151.1,151.04,32.28371045]
[1641512318818,4.0,151.09,151.04,32.28371045]
[1641512319118,3.2557163,151.07,151.02,4.61892045]
[1641512319418,30.9205063,151.07,151.02,4.61892045]
[1641512319619,37.3915063,151.07,151.02,4.61892045]
[1641512320119,15.05137117,151.06,151.01,6.03357649]
[1641512323722,15.05137117,151.06,151.01,4.61892045]
[1641512323922,14.01619487,151.04,151.0,62.11582045]
[1641512324824,14.01619487,151.04,151.01,6.03354143]
[1641512326424,14.01619487,151.04,151.01,6.639]
[1641512327327,3.2557163,151.06,151.02,1.41482064]
[1641512328226,18.01619487,151.08,151.04,4.67091573]
[1641512328727,14.01619487,151.08,151.04,4.67091573]
[1641512329229,17.27191117,151.07,151.03,4.67091573]
[1641512330029,14.01619487,151.08,151.04,4.67091573]
[1641512331430,14.01619487,151.06,151.02,4.67091573]
[1641512332129,14.01619487,151.06,151.03,4.67091573]
[1641512332430,17.27191117,151.06,151.03,4.67091573]
[1641512333029,17.27191117,151.06,151.02,4.67091573]
[1641512336531,17.27191117,151.06,151.03,4.67091573]
[1641512336932,17.27191117,151.06,151.03,9.70191573]
[1641512337634,14.01619487,151.07,151.04,4.67091573]
[1641512338734,14.01619487,151.08,151.04,6.08573637]
[1641512339734,14.01619487,151.07,151.04,6.08573637]
[1641512340235,18.01619487,151.07,151.04,6.08573637]
[1641512340435,14.01619487,151.07,151.04,6.08573637]
[1641512340637,14.01619487,151.07,151.04,4.67091573]
[1641512341335,14.01619487,151.08,151.04,4.67091573]
[1641512344038,14.01619487,151.09,151.05,4.67091573]
[1641512344541,14.01619487,151.09,151.05,10.42891573]
[1641512346741,14.01619487,151.09,151.05,4.67091573]
[1641512350746,4.67055444,151.06,151.05,4.67091573]
[1641512354452,4.67055444,151.06,151.02,22.31790702]
[1641512354652,4.67055444,151.08,151.04,14.01619487]
[1641512356056,4.67055444,151.07,151.04,14.01619487]
[1641512357156,4.67055444,151.07,151.03,14.01619487]
[1641512357755,4.67055444,151.07,151.04,14.01619487]
[1641512359259,4.67055444,151.07,151.03,14.01619487]
[1641512361860,4.67055444,151.07,151.04,14.01619487]
[1641512362461,4.67055444,151.06,151.02,22.31790702]
[1641512363766,8.67055444,151.06,151.02,22.31790702]
[1641512364463,4.0,151.03,151.02,22.31790702]
[1641512364663,8.503,151.03,150.97,6.61485034]
[1641512364863,4.0,151.02,150.97,6.61485034]
[1641512365065,8.503,151.03,150.97,6.61485034]
[1641512365465,4.0,151.02,150.97,6.61485034]
[1641512365865,27.66479,151.0,150.97,6.61485034]
[1641512366066,32.33534444,151.0,150.97,6.61485034]
[1641512366966,27.66479,151.0,150.97,6.61485034]
[1641512368567,32.33704522,151.0,150.97,6.61485034]
[1641512369270,27.66479,151.0,150.97,6.61485034]
[1641512369871,4.0,151.04,150.97,6.61485034]
[1641512370071,59.499,151.06,150.98,4.0]
[1641512370273,4.67162682,151.02,150.99,4.0]
[1641512370471,27.66479,151.07,151.0,6.61331922]
[1641512370671,4.0,151.1,151.0,6.61331922]
[1641512371172,4.0,151.1,151.02,24.0]
[1641512371373,4.0,151.1,151.02,5.758]
[1641512371574,4.0,151.11,151.02,5.758]
[1641512371872,27.66479,151.09,151.02,5.758]
[1641512375978,27.66479,151.09,151.02,29.758]
[1641512376179,84.72409,151.12,151.02,29.758]
[1641512379882,84.72409,151.12,151.03,27.66479]
[1641512380683,4.0,151.1,151.03,27.66479]
[1641512381083,4.0,151.1,151.02,15.438]
[1641512381282,84.72409,151.12,151.02,15.438]
[1641512381283,4.0,151.11,151.02,15.438]
[1641512384189,31.66479,151.11,151.02,15.438]
[1641512385493,31.66479,151.11,151.02,22.32182346]
[1641512387899,27.66479,151.11,151.02,22.32182346]
[1641512388599,31.66479,151.11,151.02,22.32182346]
[1641512389400,27.66479,151.11,151.02,22.32182346]
[1641512391005,4.0,151.09,151.02,22.32182346]
[1641512395010,4.0,151.09,151.03,14.01103055]
[1641512401320,14.01103055,151.1,151.03,14.01103055]
[1641512401522,14.01103055,151.1,151.03,18.81703055]
[1641512402821,27.66479,151.11,151.05,14.01103055]
[1641512403022,27.66479,151.11,151.05,38.01103055]
[1641512403222,27.66479,151.11,151.07,4.0]
[1641512403423,27.66479,151.11,151.07,10.104]
[1641512403823,27.66479,151.11,151.07,24.11503055]
[1641512404724,41.67582055,151.14,151.07,24.11503055]
[1641512405328,41.67582055,151.14,151.07,20.11503055]
[1641512406028,3.25444844,151.13,151.08,15.42522361]
[1641512406228,3.25444844,151.13,151.09,24.0]
[1641512406427,3.25444844,151.13,151.08,15.42522361]
[1641512406927,3.25444844,151.13,151.1,1.41419306]
[1641512408029,3.25444844,151.15,151.1,1.41419306]
[1641512408929,3.25444844,151.15,151.09,14.01103055]
[1641512413340,3.25444844,151.15,151.1,14.01103055]
[1641512415942,3.25444844,151.15,151.1,22.30904707]
[1641512416744,3.25444844,151.15,151.1,1.41419306]
[1641512417745,27.66479,151.16,151.11,14.01103055]
[1641512419647,3.25380694,151.15,151.11,14.01103055]
[1641512422753,27.66479,151.16,151.11,14.01103055]
[1641512423551,27.66479,151.16,151.11,15.42522361]
[1641512424654,31.66479,151.16,151.11,15.42522361]
[1641512425054,4.0,151.14,151.11,2.361e-05]
[1641512425256,4.534,151.14,151.11,2.361e-05]
[1641512425455,8.534,151.14,151.1,6.88353009]
[1641512425655,4.0,151.13,151.07,6.88353009]
[1641512425955,4.534,151.14,151.07,6.88353009]
[1641512426155,8.534,151.14,151.07,6.88353009]
[1641512426757,8.534,151.14,151.06,6.61091462]
[1641512427158,4.0,151.13,151.06,6.61091462]
[1641512427957,66.6325,151.14,151.06,6.61091462]
[1641512428257,70.6325,151.14,151.06,6.61091462]
[1641512428757,66.6325,151.14,151.06,6.61091462]
[1641512428959,70.6325,151.14,151.06,6.61091462]
[1641512431063,4.0,151.09,151.05,6.88353009]
[1641512431263,11.027,151.09,151.05,6.88353009]
[1641512431663,7.027,151.09,151.05,6.88353009]
[1641512432063,4.67021998,151.08,151.03,6.88353009]
[1641512432763,7.027,151.09,151.03,6.88353009]
[1641512432964,4.67024759,151.07,151.03,6.88353009]
[1641512433664,7.027,151.09,151.03,6.88353009]
[1641512433865,31.66479,151.1,151.03,6.88353009]
[1641512434572,4.67023791,151.07,151.03,6.88353009]
[1641512435371,57.863,151.09,151.03,6.88353009]
[1641512436174,4.67023863,151.07,151.03,6.88353009]
[1641512437174,4.67017725,151.08,151.03,6.88353009]
[1641512437474,4.67017725,151.08,151.03,13.41753009]
[1641512437676,4.67017725,151.08,151.04,24.0]
[1641512437876,4.67017725,151.08,151.05,6.61113315]
[1641512438176,32.33425483,151.1,151.05,6.61113315]
[1641512439178,27.66479,151.1,151.05,13.49466324]
[1641512440077,27.66479,151.1,151.05,6.88353009]
[1641512440279,32.33417569,151.1,151.05,6.88353009]
[1641512440679,4.0,151.09,151.05,6.88353009]
[1641512441081,4.0,151.08,151.05,6.88353009]
[1641512441279,4.66970037,151.09,151.05,6.88353009]
[1641512441980,31.66479,151.1,151.05,6.88353009]
[1641512442180,31.66479,151.1,151.03,6.88353009]
[1641512442181,4.67028185,151.07,151.03,6.88353009]
[1641512442980,59.6628,151.09,151.03,6.88353009]
[1641512443884,4.67028179,151.07,151.03,6.88353009]
[1641512444785,59.6628,151.09,151.03,6.88353009]
[1641512445684,4.67028924,151.07,151.03,6.88353009]
[1641512446585,59.6628,151.09,151.03,6.88353009]
[1641512447285,59.6628,151.09,151.07,4.6702883]
[1641512447485,31.66479,151.1,151.07,4.6702883]
[1641512448085,31.66479,151.1,151.03,6.88353009]
[1641512449091,31.66479,151.1,151.07,4.67028728]
[1641512449487,27.66479,151.1,151.07,4.67028728]
[1641512449889,27.66479,151.1,151.05,6.762]
[1641512450688,27.66479,151.1,151.08,4.66978401]
[1641512451291,31.66479,151.1,151.08,4.66978401]
[1641512451693,31.66479,151.1,151.09,4.66965701]
[1641512451991,27.66479,151.1,151.09,4.66965701]
[1641512452592,27.66479,151.1,151.08,4.66999796]
[1641512453393,27.66479,151.1,151.03,6.88353009]
[1641512454396,27.66479,151.1,151.08,4.66996281]
[1641512455095,27.66479,151.1,151.03,12.57753009]
[1641512455297,27.66479,151.1,151.04,14.00991282]
[1641512455996,27.66479,151.1,151.07,4.67015352]
[1641512456196,31.66479,151.1,151.07,4.67015352]
[1641512456399,4.0,151.09,151.07,4.67015352]
[1641512456801,27.66479,151.1,151.04,14.00991282]
[1641512457000,27.66479,151.1,151.04,18.38791282]
[1641512457899,27.66479,151.1,151.07,14.00991282]
[1641512463706,21.83736962,151.1,151.07,14.00991282]
[1641512463907,77.44099784,151.14,151.07,14.00991282]
[1641512464206,4.66906275,151.11,151.07,14.00991282]
[1641512465508,4.66906275,151.12,151.08,14.00991282]
[1641512467312,4.66906275,151.12,151.07,1.41284717]
[1641512467313,4.66906275,151.12,151.09,14.00991282]
[1641512470718,4.66906275,151.13,151.09,14.00991282]
[1641512470915,4.66906275,151.13,151.09,19.10491282]
[1641512471216,4.66906275,151.13,151.12,4.66854883]
[1641512473822,27.66479,151.15,151.08,4.66854883]
[1641512474023,58.8041,151.14,151.08,4.66854883]
[1641512474523,58.8041,151.14,151.09,4.66854883]
[1641512475523,58.8041,151.14,151.12,4.66854883]
[1641512475728,3.25581138,151.13,151.12,4.66854883]
[1641512476726,3.25581138,151.13,151.11,4.66854883]
[1641512476927,3.25581138,151.14,151.11,4.66854883]
[1641512479232,3.25581138,151.14,151.12,4.66854883]
[1641512482736,3.25581138,151.14,151.13,4.66854883]
[1641512483635,65.5664,151.17,151.13,4.66854883]
[1641512483636,3.25581138,151.15,151.13,4.66854883]
[1641512484535,3.25581138,151.16,151.14,4.66854883]
[1641512487740,3.25581138,151.17,151.14,4.66854883]
[1641512488641,3.25581138,151.17,151.15,4.66854883]
[1641512488840,3.25581138,151.17,151.15,11.10854883]
[1641512489541,3.25581138,151.18,151.15,11.10854883]
[1641512490643,17.26200003,151.18,151.15,6.44]
[1641512491449,3.25581138,151.18,151.15,11.10854883]
[1641512492748,3.25581138,151.18,151.15,4.66854883]
[1641512492948,17.26200003,151.18,151.15,4.66854883]
[1641512494448,4.66760719,151.16,151.15,4.66854883]
[1641512498253,4.66760719,151.16,151.13,1.41304669]
[1641512498455,4.66760719,151.16,151.13,22.30283797]
[1641512499954,4.66760719,151.16,151.13,1.41304669]
[1641512503058,4.66760719,151.17,151.13,22.30283504]
[1641512503257,4.66760719,151.17,151.13,28.19083504]
[1641512503959,4.66760719,151.17,151.16,4.66716082]
[1641512505963,4.66760719,151.17,151.14,1.41304669]
[1641512507163,4.66760719,151.17,151.16,4.6671144]
[1641512507864,7.25581138,151.19,151.16,4.6671144]
[1641512508065,3.25581138,151.18,151.16,4.6671144]
[1641512511571,10.02200003,151.2,151.16,4.6671144]
[1641512511768,10.02200003,151.2,151.16,10.8031144]
[1641512512169,7.24200003,151.2,151.17,4.6671144]
[1641512512568,6.64200003,151.2,151.17,4.6671144]
[1641512513372,91.81527241,151.24,151.16,6.136]
[1641512513570,54.3395,151.24,151.18,27.66479]
[1641512514771,58.3395,151.24,151.18,27.66479]
[1641512514975,54.3395,151.24,151.21,4.66581975]
[1641512515173,27.66479,151.25,151.21,4.66581975]
[1641512515873,27.66479,151.25,151.2,4.66581975]
[1641512517980,4.0,151.22,151.2,4.66581975]
[1641512518180,4.0,151.22,151.2,1.975e-05]
[1641512518181,4.0,151.21,151.2,1.975e-05]
[1641512519481,57.7057,151.21,151.2,1.975e-05]
[1641512519681,85.37049,151.21,151.14,56.1738]
[1641512519882,4.0,151.2,151.14,56.1738]
[1641512520184,85.37049,151.21,151.14,56.1738]
[1641512520985,53.7057,151.21,151.14,56.1738]
[1641512522186,57.7057,151.21,151.14,56.1738]
[1641512522386,53.7057,151.21,151.14,56.1738]
[1641512522586,57.7057,151.21,151.14,56.1738]
[1641512524288,4.0,151.2,151.14,56.1738]
[1641512524489,53.7057,151.21,151.14,56.1738]
[1641512524686,57.7057,151.21,151.14,56.1738]
[1641512525088,57.7057,151.21,151.14,48.70616031]
[1641512525489,53.7057,151.21,151.14,48.70616031]
[1641512525990,57.7057,151.21,151.14,48.70616031]
[1641512527391,53.7057,151.21,151.14,48.70616031]
[1641512528494,57.7057,151.21,151.14,48.70616031]
[1641512529092,53.7057,151.21,151.14,48.70616031]
[1641512530394,4.0,151.19,151.14,48.70616031]
[1641512530897,62.9447,151.21,151.14,48.70616031]
[1641512534303,58.9447,151.21,151.14,48.70616031]
[1641512534703,53.7057,151.21,151.14,48.70616031]
[1641512535203,53.7057,151.21,151.15,10.87951486]
[1641512535502,53.7057,151.21,151.15,6.87951486]
[1641512536006,53.7057,151.21,151.15,34.54430486]
[1641512536806,4.0,151.24,151.15,27.66479]
[1641512537005,27.66479,151.25,151.15,27.66479]
[1641512537006,61.8453,151.23,151.15,27.66479]
[1641512538807,57.8453,151.23,151.15,27.66479]
[1641512540909,61.8453,151.23,151.15,27.66479]
[1641512541112,57.8453,151.23,151.15,27.66479]
[1641512541710,57.8453,151.23,151.16,6.87945675]
[1641512542812,57.8453,151.23,151.15,27.66479]
[1641512543313,57.8453,151.23,151.16,4.0]
[1641512543513,71.83910843,151.23,151.15,41.65859843]
[1641512544315,57.8453,151.23,151.16,20.87325255]
[1641512545215,71.83910843,151.23,151.16,20.87325255]
[1641512546015,57.8453,151.23,151.16,20.87325255]
[1641512546815,71.83910843,151.23,151.16,20.87325255]
[1641512547615,57.8453,151.23,151.16,20.87325255]
[1641512550118,57.8453,151.23,151.17,13.99380843]
[1641512551719,57.8453,151.23,151.16,20.87325255]
[1641512553122,3.25056153,151.22,151.17,13.99380843]
[1641512554023,57.8453,151.23,151.16,32.04696591]
[1641512554725,57.8453,151.23,151.17,1.41371336]
[1641512561740,3.25184054,151.22,151.17,15.40752179]
[1641512561937,8.61084054,151.22,151.17,15.40752179]
[1641512562640,3.25184054,151.21,151.17,1.41371336]
[1641512564138,3.25184054,151.22,151.18,13.99380843]
[1641512565139,57.8453,151.23,151.18,22.28948168]
[1641512567544,3.25150438,151.22,151.18,22.28948168]
[1641512568944,57.8453,151.23,151.18,22.28948168]
[1641512569146,41.65859843,151.26,151.19,13.99380843]
[1641512570047,3.25103994,151.25,151.19,13.99380843]
[1641512571048,8.29003994,151.25,151.19,13.99380843]
[1641512571649,3.25103994,151.24,151.19,13.99380843]
[1641512572553,3.25103994,151.24,151.19,17.99380843]
[1641512572850,3.25103994,151.25,151.2,6.60458358]
[1641512573052,3.25103994,151.25,151.2,13.11058358]
[1641512573251,3.25103994,151.25,151.23,27.66479]
[1641512573451,3.25103994,151.25,151.23,31.66479]
[1641512573852,3.25103994,151.28,151.23,45.65859843]
[1641512574251,3.25103994,151.28,151.23,41.65859843]
[1641512575053,7.25103994,151.28,151.23,41.65859843]
[1641512575252,4.0,151.28,151.24,1.41371336]
[1641512575652,4.0,151.29,151.24,1.41371336]
[1641512576053,3.25103994,151.27,151.23,13.99380843]
[1641512576254,3.25103994,151.27,151.21,22.28931354]
[1641512578857,3.25103994,151.27,151.25,4.66475157]
[1641512580361,72.35380843,151.28,151.25,4.66475157]
[1641512580561,58.36,151.28,151.22,4.66475157]
[1641512581862,4.0,151.26,151.22,4.66475157]
[1641512582061,9.34,151.26,151.22,4.66475157]
[1641512582362,5.34,151.26,151.22,4.66475157]
[1641512582562,9.34,151.26,151.22,4.66475157]
[1641512582765,5.34,151.26,151.22,6.07846493]
[1641512583466,3.25084045,151.25,151.23,4.66475157]
[1641512584264,5.34,151.26,151.23,4.66475157]
[1641512584866,5.34,151.26,151.24,4.66475157]
[1641512585966,5.34,151.26,151.21,1.41371336]
[1641512585967,3.25064176,151.25,151.21,1.41371336]
[1641512586568,62.36,151.28,151.21,1.41371336]
[1641512586769,17.24587064,151.27,151.24,4.66507204]
[1641512586969,24.28887064,151.27,151.24,4.66507204]
[1641512587370,7.043,151.27,151.21,1.41371336]
[1641512587572,7.043,151.27,151.21,43.07231179]
[1641512587573,3.25044593,151.26,151.21,43.07231179]
[1641512588572,3.24999906,151.27,151.22,22.28937056]
[1641512589273,58.36,151.28,151.22,22.28937056]
[1641512589475,58.36,151.28,151.25,4.66462975]
[1641512589673,27.66479,151.29,151.25,4.66462975]
[1641512590174,27.66479,151.29,151.22,22.28937056]
[1641512590376,3.25014018,151.28,151.22,22.28937056]
[1641512591180,13.9939303,151.28,151.24,4.66480221]
[1641512591777,27.66479,151.29,151.22,1.41371336]
[1641512591978,3.250163,151.28,151.25,4.66466245]
[1641512592580,4.0,151.27,151.25,4.66466245]
[1641512592778,5.851,151.27,151.25,4.66466245]
[1641512592980,5.851,151.27,151.22,22.28929529]
[1641512593780,3.25030588,151.26,151.25,4.66478151]
[1641512594780,3.25032424,151.28,151.22,1.41371336]
[1641512595482,45.65918044,151.29,151.22,1.41371336]
[1641512595681,45.65918044,151.29,151.25,4.66479286]
[1641512596281,3.25032856,151.28,151.22,1.41371336]
[1641512597283,13.99439044,151.29,151.25,4.6648125]
[1641512598082,13.99439044,151.29,151.22,1.41371336]
[1641512598083,17.2447446,151.29,151.22,1.41371336]
[1641512598789,17.2447446,151.29,151.25,4.6648367]
[1641512599188,21.2447446,151.29,151.25,4.6648367]
[1641512599388,17.2447446,151.29,151.25,4.6648367]
[1641512599691,17.2447446,151.29,151.22,1.41371336]
[1641512600490,13.99439044,151.28,151.25,4.6648476]
[1641512601293,7.175,151.28,151.22,1.41371336]
[1641512601490,10.42535416,151.28,151.22,1.41371336]
[1641512602393,3.2504758,151.27,151.24,4.66492312]
[1641512603094,7.175,151.28,151.22,1.41371336]
[1641512603596,15.7778842,151.29,151.22,1.41371336]
[1641512603897,3.25049073,151.27,151.24,4.66493556]
[1641512604697,4.88,151.27,151.22,1.41371336]
[1641512605499,3.25042771,151.26,151.25,4.66488304]
[1641512606300,4.88,151.27,151.22,1.41371336]
[1641512606502,15.7778842,151.29,151.22,1.41371336]
[1641512606800,15.7778842,151.29,151.24,4.66493816]
[1641512607500,15.7778842,151.29,151.22,1.41371336]
[1641512607700,17.2452735,151.28,151.22,1.41371336]
[1641512608200,21.1988842,151.29,151.22,1.41371336]
[1641512608401,21.1988842,151.29,151.24,4.66492225]
[1641512609003,21.1988842,151.29,151.22,1.41371336]
[1641512609203,17.24525993,151.28,151.22,1.41371336]
[1641512609802,21.1988842,151.29,151.24,4.66494253]
[1641512610505,17.1988842,151.29,151.24,4.66494253]
[1641512610704,17.24534339,151.28,151.22,1.41371336]
[1641512611403,31.66479,151.29,151.24,4.66499284]
[1641512612106,31.66479,151.29,151.22,1.41371336]
[1641512612305,17.24508408,151.28,151.25,4.66488477]
[1641512612504,21.61608408,151.28,151.25,4.66488477]
[1641512613106,4.371,151.28,151.24,4.66498612]
[1641512613307,3.25055141,151.27,151.24,4.66498612]
[1641512614211,4.371,151.28,151.21,68.99380843]
[1641512614409,13.994995,151.28,151.21,68.99380843]
[1641512615512,17.24487443,151.28,151.25,4.66442614]
[1641512616111,27.66479,151.29,151.22,1.41454671]
[1641512617112,27.66479,151.29,151.25,4.66431284]
[1641512617113,3.24974347,151.28,151.25,4.66431284]
[1641512617711,13.99293853,151.29,151.22,22.29008203]
[1641512617911,17.24234142,151.29,151.26,4.66402903]
[1641512618613,17.24234142,151.29,151.22,22.29008203]
[1641512618614,13.99293853,151.29,151.22,22.29008203]
[1641512618811,56.9949,151.3,151.22,22.29008203]
[1641512619511,17.24144902,151.29,151.26,4.66401928]
[1641512620414,82.94309,151.32,151.22,26.29008203]
[1641512620611,82.94309,151.32,151.22,32.93308203]
[1641512621213,82.94309,151.32,151.24,27.66479]
[1641512621416,17.23894904,151.31,151.28,4.66342404]
[1641512622315,55.2783,151.32,151.25,57.7348]
[1641512622517,69.26831482,151.32,151.26,1.41454671]
[1641512623115,3.24863613,151.31,151.28,4.66339006]
[1641512624017,69.26831482,151.32,151.26,1.41476348]
[1641512624720,3.24857411,151.31,151.28,4.66333838]
[1641512625519,69.26831482,151.32,151.26,1.41476336]
[1641512626221,4.0,151.31,151.26,1.41476336]
[1641512626421,3.2485878,151.31,151.28,4.66334978]
[1641512627121,96.93310482,151.32,151.25,71.72860843]
[1641512627324,13.99001482,151.31,151.27,4.66356966]
[1641512628021,13.99001482,151.31,151.25,57.7348]
[1641512628224,17.23874239,151.31,151.28,4.66346626]
[1641512629224,17.23874239,151.31,151.25,57.7348]
[1641512629225,82.94309,151.32,151.25,57.7348]
[1641512629423,82.94309,151.32,151.26,1.41473702]
[1641512630223,17.23910298,151.31,151.28,4.6634607]